Workbook

Sheet Equation
C1: The Equation of
C2: The Ellipse
C4: The equation of the ellipse
C5: with center on the x-axis at x0 is
D6: (x - x0)2 + y2 = 1
D7: a2 b2
B10: What is the center, x0? | E10: =-2+G10/2 -> 7.5 | G10: 19
B13: Enter the value for the parameter a | E13: =G13+1 -> 6 | G13: 5
C14: a is between 1 and 10
J16: Graph of (x - x0)2/52 + y2/32 = 1 for comparison
B17: Enter the value for the parameter b
C18: b is between 1 and 10 | E18: =G18+1 -> 6 | G18: 5
A23: Click each item below for suggestions and investigations
D24: Item 1
D25: Item 2
D26: Item 3
D27: Item 4
A31: To access/download all the DIGMath Apps for College Algebra/Precalculus
A32: Click this link: | C32: DIGMath Modules for College Algebra and Precalculus
A34: Created by: Sheldon P. Gordon & Florence S. Gordon
A35: Farmingdale State College NYIT
A36: Development of this module was supported by the
A37: NSF's Division of Undergraduate Education
A38: under grants DUE-0310123 and DUE-0442160.

Sheet Definition
D1: The Definition of
D2: The Ellipse
C4: An ellipse consists of the set of all points
C5: where the sum of the distances
C6: from two fixed points (the foci)
D7: is a constant.
B10: Enter the x-value for the right focus | E10: =-2+G10/2 -> 5 | G10: 14
B13: Enter the x-value for the left focus | E13: =IF(-12+G13/2<E10,-12+G13/2,E10-0.5) -> 0.5 | G13: 25
C14: a is between 0.01 (1%) and 0.50 (40%)
B17: Enter the total distance D from the two foci
D18: D is between 1 and 20 | E18: =G18+1 -> 11 | G18: 10 | L18: Select a point on the ellipse: x = | O18: =LOOKUP(Q18,Sheet3!D2:D201,Sheet3!E2:E201) -> -2.64 | Q18: 99
N19: y = | O19: =LOOKUP(Q18,Sheet3!D2:D201,Sheet3!F2:F201) -> 0.9987116701
N21: D1 = | O21: =Sheet3!J12 -> 7.705
N22: D2 = | O22: =Sheet3!J13 -> 3.295
N23: D = | O23: =O21+O22 -> 11
A26: Click each item below for suggestions and investigations
D27: Item 1
D28: Item 2
D29: Item 3
D30: Item 4
A34: To access/download all the DIGMath Apps for College Algebra/Precalculus
A35: Click this link: | C35: DIGMath Modules for College Algebra and Precalculus
A37: Created by: Sheldon P. Gordon & Florence S. Gordon
A38: Farmingdale State College NYIT
A39: Development of this module was supported by the
A40: NSF's Division of Undergraduate Education
A41: under grants DUE-0310123 and DUE-0442160.
W860: =Z860 -> 0 | X860: =Z860 -> 0

Sheet Sheet3
F1: Definition | Q1: Equation
A2: D = | B2: =D -> 11 | D2: 0 | E2: =IF(a>cc,xMax,0) -> 8.25 | F2: =IF(a>cc, b*(1-(E2-x0)^2/a^2)^0.5,x0) -> 0 | G2: =E2 -> 8.25 | H2: =F2 -> 0 | I2: =a0 -> 5 | J2: 0 | L2: D = | M2: =D -> 11 | O2: 0 | P2: =x00+aa -> 13.5 | Q2: =bb*(1-(P2-x00)^2/aa^2)^0.5 -> 0 | R2: =x00+5 -> 12.5 | S2: =3*(1-(R2-x00)^2/25)^0.5 -> 0 | T2: =x00+cc -> 9.75 | U2: 0
D3: 1 | E3: =IF(a>cc,E2-dx,0) -> 8.14 | F3: 0.9987116701 | G3: =E3 -> 8.14 | H3: =F3 -> 0.9987116701 | I3: =b0 -> 0.5 | J3: 0 | O3: 1 | P3: =P2-dxx -> 13.38 | Q3: 1.193984925 | R3: =R2-0.1 -> 12.4 | S3: 0.5969924623 | T3: =x00-cc -> 5.25 | U3: 0
A4: a = | B4: =D/2 -> 5.5 | D4: 2 | E4: 8.03 | F4: 1.405240193 | G4: 8.03 | H4: 1.405240193 | L4: a = | M4: =aa -> 6 | O4: 2 | P4: 13.26 | Q4: 1.68 | R4: =R3-0.1 -> 12.3 | S4: 0.84
D5: 3 | E5: 7.92 | F5: 1.712257282 | G5: 7.92 | H5: 1.712257282 | I5: =a0 -> 5 | J5: =0 -> 0 | O5: 3 | P5: 13.14 | Q5: 2.047046653 | R5: 12.2 | S5: 1.023523327 | T5: center
A6: c = | B6: =(a0-b0)/2 -> 2.25 | D6: 4 | E6: 7.81 | F6: 1.966926537 | G6: 7.81 | H6: 1.966926537 | I6: =Definition!O18 -> -2.64 | J6: =Definition!O19 -> 0.9987116701 | L6: c = | M6: =(aa^2-bb^2)^0.5 -> 0 | O6: 4 | P6: 13.02 | Q6: 2.351510153 | R6: 12.1 | S6: 1.175755077 | T6: =x00 -> 7.5 | U6: 0
D7: 5 | E7: 7.7 | F7: 2.18760714 | G7: 7.7 | H7: 2.18760714 | O7: 5 | P7: 12.9 | Q7: 2.615339366 | R7: 12 | S7: 1.307669683
A8: b = | B8: =IF(a>cc,(a^2-cc^2)^0.5,0) -> 5.018714975 | D8: 6 | E8: 7.59 | F8: 2.383757538 | G8: 7.59 | H8: 2.383757538 | I8: =b0 -> 0.5 | J8: 0 | L8: b = | M8: =bb -> 6 | O8: 6 | P8: 12.78 | Q8: 2.849842101 | R8: 11.9 | S8: 1.42492105 | T8: =b0 -> 0.5 | U8: 0
D9: 7 | E9: 7.48 | F9: 2.561020304 | G9: 7.48 | H9: 2.561020304 | I9: =Definition!$O$18 -> -2.64 | J9: =Definition!$O$19 -> 0.9987116701 | O9: 7 | P9: 12.66 | Q9: 3.061764197 | R9: 11.8 | S9: 1.530882099 | T9: =Definition!$O$18 -> -2.64 | U9: =Definition!$O$19 -> 0.9987116701
A10: Center x0 = | B10: =(a0+b0)/2 -> 2.75 | D10: 8 | E10: 7.37 | F10: 2.723086484 | G10: 7.37 | H10: 2.723086484 | L10: Center x0 = | M10: =x00 -> 7.5 | O10: 8 | P10: 12.54 | Q10: 3.255518392 | R10: 11.7 | S10: 1.627759196
D11: 9 | E11: 7.26 | F11: 2.872529373 | G11: 7.26 | H11: 2.872529373 | O11: 9 | P11: 12.42 | Q11: 3.434181125 | R11: 11.6 | S11: 1.717090563
D12: 10 | E12: 7.15 | F12: 3.011228985 | G12: 7.15 | H12: 3.011228985 | I12: D1 = | J12: =((I5-I6)^2+J6^2)^0.5 -> 7.705 | O12: 10 | P12: 12.3 | Q12: 3.6 | R12: 11.5 | S12: 1.8
A13: xMin = | B13: =x0-a -> -2.75 | D13: 11 | E13: 7.04 | F13: 3.140609017 | G13: 7.04 | H13: 3.140609017 | I13: D2 = | J13: =((I8-I9)^2+J9^2)^0.5 -> 3.295 | L13: xMin = | M13: =x00-aa -> 1.5 | O13: 11 | P13: 12.18 | Q13: 3.754677083 | R13: 11.4 | S13: 1.877338542
A14: xMax = | B14: =x0+a -> 8.25 | D14: 12 | E14: 6.93 | F14: 3.261778656 | G14: 6.93 | H14: 3.261778656 | L14: xMax = | M14: =x00+aa -> 13.5 | O14: 12 | P14: 12.06 | Q14: 3.899538434 | R14: 11.3 | S14: 1.949769217
D15: 13 | E15: 6.82 | F15: 3.375622165 | G15: 6.82 | H15: 3.375622165 | O15: 13 | P15: 11.94 | Q15: 4.035641213 | R15: 11.2 | S15: 2.017820606
A16: dx = | B16: =(xMax-xMin)/100 -> 0.11 | D16: 14 | E16: 6.71 | F16: 3.482858022 | G16: 6.71 | H16: 3.482858022 | L16: dx = | M16: =(M14-M13)/100 -> 0.12 | O16: 14 | P16: 11.82 | Q16: 4.163844377 | R16: 11.1 | S16: 2.081922189
D17: 15 | E17: 6.6 | F17: 3.58407938 | G17: 6.6 | H17: 3.58407938 | O17: 15 | P17: 11.7 | Q17: 4.284857057 | R17: 11 | S17: 2.142428529
D18: 16 | E18: 6.49 | F18: 3.679782602 | G18: 6.49 | H18: 3.679782602 | O18: 16 | P18: 11.58 | Q18: 4.399272667 | R18: 10.9 | S18: 2.199636334
D19: 17 | E19: 6.38 | F19: 3.770387911 | G19: 6.38 | H19: 3.770387911 | O19: 17 | P19: 11.46 | Q19: 4.507593593 | R19: 10.8 | S19: 2.253796797
D20: 18 | E20: 6.27 | F20: 3.85625466 | G20: 6.27 | H20: 3.85625466 | O20: 18 | P20: 11.34 | Q20: 4.610249451 | R20: 10.7 | S20: 2.305124725
D21: 19 | E21: 6.16 | F21: 3.937692852 | G21: 6.16 | H21: 3.937692852 | O21: 19 | P21: 11.22 | Q21: 4.707610859 | R21: 10.6 | S21: 2.35380543
D22: 20 | E22: 6.05 | F22: 4.01497198 | G22: 6.05 | H22: 4.01497198 | O22: 20 | P22: 11.1 | Q22: 4.8 | R22: 10.5 | S22: 2.4
D23: 21 | E23: 5.94 | F23: 4.088327898 | G23: 5.94 | H23: 4.088327898 | O23: 21 | P23: 10.98 | Q23: 4.887698845 | R23: 10.4 | S23: 2.443849423
D24: 22 | E24: 5.83 | F24: 4.157968254 | G24: 5.83 | H24: 4.157968254 | O24: 22 | P24: 10.86 | Q24: 4.970955643 | R24: 10.3 | S24: 2.485477821
D25: 23 | E25: 5.72 | F25: 4.224076822 | G25: 5.72 | H25: 4.224076822 | O25: 23 | P25: 10.74 | Q25: 5.049990099 | R25: 10.2 | S25: 2.52499505
D26: 24 | E26: 5.61 | F26: 4.286817001 | G26: 5.61 | H26: 4.286817001 | O26: 24 | P26: 10.62 | Q26: 5.124997561 | R26: 10.1 | S26: 2.56249878
D27: 25 | E27: 5.5 | F27: 4.346334663 | G27: 5.5 | H27: 4.346334663 | O27: 25 | P27: 10.5 | Q27: 5.196152423 | R27: 10 | S27: 2.598076211
D28: 26 | E28: 5.39 | F28: 4.402760498 | G28: 5.39 | H28: 4.402760498 | O28: 26 | P28: 10.38 | Q28: 5.263610928 | R28: 9.9 | S28: 2.631805464
D29: 27 | E29: 5.28 | F29: 4.456211956 | G29: 5.28 | H29: 4.456211956 | O29: 27 | P29: 10.26 | Q29: 5.327513491 | R29: 9.8 | S29: 2.663756746
D30: 28 | E30: 5.17 | F30: 4.50679487 | G30: 5.17 | H30: 4.50679487 | O30: 28 | P30: 10.14 | Q30: 5.387986637 | R30: 9.7 | S30: 2.693993318
D31: 29 | E31: 5.06 | F31: 4.554604813 | G31: 5.06 | H31: 4.554604813 | O31: 29 | P31: 10.02 | Q31: 5.445144626 | R31: 9.6 | S31: 2.722572313
D32: 30 | E32: 4.95 | F32: 4.599728253 | G32: 4.95 | H32: 4.599728253 | O32: 30 | P32: 9.9 | Q32: 5.499090834 | R32: 9.5 | S32: 2.749545417
D33: 31 | E33: 4.84 | F33: 4.642243531 | G33: 4.84 | H33: 4.642243531 | O33: 31 | P33: 9.78 | Q33: 5.549918918 | R33: 9.4 | S33: 2.774959459
D34: 32 | E34: 4.73 | F34: =IF(a>cc, b*(1-(E34-x0)^2/a^2)^0.5,x0) -> 4.682221695 | G34: 4.73 | H34: 4.682221695 | O34: 32 | P34: 9.66 | Q34: =bb*(1-(P34-x00)^2/aa^2)^0.5 -> 5.597713819 | R34: 9.3 | S34: =3*(1-(R34-x00)^2/25)^0.5 -> 2.79885691
D35: 33 | E35: =IF(a>cc,E34-dx,0) -> 4.62 | F35: 4.719727217 | G35: 4.62 | H35: 4.719727217 | O35: 33 | P35: =P34-dxx -> 9.54 | Q35: 5.642552614 | R35: 9.2 | S35: 2.821276307
D36: 34 | E36: 4.51 | F36: 4.754818609 | G36: 4.51 | H36: 4.754818609 | O36: 34 | P36: 9.42 | Q36: 5.684505256 | R36: 9.1 | S36: 2.842252628
D37: 35 | E37: 4.4 | F37: 4.787548955 | G37: 4.4 | H37: 4.787548955 | O37: 35 | P37: 9.3 | Q37: 5.723635209 | R37: 9 | S37: 2.861817604
D38: 36 | E38: 4.29 | F38: 4.817966376 | G38: 4.29 | H38: 4.817966376 | O38: 36 | P38: 9.18 | Q38: 5.76 | R38: 8.9 | S38: 2.88
D39: 37 | E39: 4.18 | F39: 4.846114423 | G39: 4.18 | H39: 4.846114423 | O39: 37 | P39: 9.06 | Q39: 5.793651698 | R39: 8.8 | S39: 2.896825849
D40: 38 | E40: 4.07 | F40: 4.87203243 | G40: 4.07 | H40: 4.87203243 | O40: 38 | P40: 8.94 | Q40: 5.824637328 | R40: 8.7 | S40: 2.912318664
D41: 39 | E41: 3.96 | F41: 4.895755815 | G41: 3.96 | H41: 4.895755815 | O41: 39 | P41: 8.82 | Q41: 5.852999231 | R41: 8.6 | S41: 2.926499616
D42: 40 | E42: 3.85 | F42: 4.917316341 | G42: 3.85 | H42: 4.917316341 | O42: 40 | P42: 8.7 | Q42: 5.878775383 | R42: 8.5 | S42: 2.939387691
D43: 41 | E43: 3.74 | F43: 4.936742347 | G43: 3.74 | H43: 4.936742347 | O43: 41 | P43: 8.58 | Q43: 5.901999661 | R43: 8.4 | S43: 2.950999831
D44: 42 | E44: 3.63 | F44: 4.954058942 | G44: 3.63 | H44: 4.954058942 | O44: 42 | P44: 8.46 | Q44: 5.922702086 | R44: 8.3 | S44: 2.961351043
D45: 43 | E45: 3.52 | F45: 4.969288178 | G45: 3.52 | H45: 4.969288178 | O45: 43 | P45: 8.34 | Q45: 5.940909021 | R45: 8.2 | S45: 2.970454511
D46: 44 | E46: 3.41 | F46: 4.982449197 | G46: 3.41 | H46: 4.982449197 | O46: 44 | P46: 8.22 | Q46: 5.95664335 | R46: 8.1 | S46: 2.978321675
D47: 45 | E47: 3.3 | F47: 4.993558351 | G47: 3.3 | H47: 4.993558351 | O47: 45 | P47: 8.1 | Q47: 5.969924623 | R47: 8 | S47: 2.984962311
D48: 46 | E48: 3.19 | F48: 5.002629309 | G48: 3.19 | H48: 5.002629309 | O48: 46 | P48: 7.98 | Q48: 5.980769181 | R48: 7.9 | S48: 2.990384591
D49: 47 | E49: 3.08 | F49: 5.009673143 | G49: 3.08 | H49: 5.009673143 | O49: 47 | P49: 7.86 | Q49: 5.989190262 | R49: 7.8 | S49: 2.994595131
D50: 48 | E50: 2.97 | F50: 5.014698396 | G50: 2.97 | H50: 5.014698396 | O50: 48 | P50: 7.74 | Q50: 5.995198078 | R50: 7.7 | S50: 2.997599039
D51: 49 | E51: 2.86 | F51: 5.017711132 | G51: 2.86 | H51: 5.017711132 | O51: 49 | P51: 7.62 | Q51: 5.99879988 | R51: 7.6 | S51: 2.99939994
D52: 50 | E52: 2.75 | F52: 5.018714975 | G52: 2.75 | H52: 5.018714975 | O52: 50 | P52: 7.5 | Q52: 6 | R52: 7.5 | S52: 3
D53: 51 | E53: 2.64 | F53: 5.017711132 | G53: 2.64 | H53: 5.017711132 | O53: 51 | P53: 7.38 | Q53: 5.99879988 | R53: 7.4 | S53: 2.99939994
D54: 52 | E54: 2.53 | F54: 5.014698396 | G54: 2.53 | H54: 5.014698396 | O54: 52 | P54: 7.26 | Q54: 5.995198078 | R54: 7.3 | S54: 2.997599039
D55: 53 | E55: 2.42 | F55: 5.009673143 | G55: 2.42 | H55: 5.009673143 | O55: 53 | P55: 7.14 | Q55: 5.989190262 | R55: 7.2 | S55: 2.994595131
D56: 54 | E56: 2.31 | F56: 5.002629309 | G56: 2.31 | H56: 5.002629309 | O56: 54 | P56: 7.02 | Q56: 5.980769181 | R56: 7.1 | S56: 2.990384591
D57: 55 | E57: 2.2 | F57: 4.993558351 | G57: 2.2 | H57: 4.993558351 | O57: 55 | P57: 6.9 | Q57: 5.969924623 | R57: 7 | S57: 2.984962311
D58: 56 | E58: 2.09 | F58: 4.982449197 | G58: 2.09 | H58: 4.982449197 | O58: 56 | P58: 6.78 | Q58: 5.95664335 | R58: 6.9 | S58: 2.978321675
D59: 57 | E59: 1.98 | F59: 4.969288178 | G59: 1.98 | H59: 4.969288178 | O59: 57 | P59: 6.66 | Q59: 5.940909021 | R59: 6.8 | S59: 2.970454511
D60: 58 | E60: 1.87 | F60: 4.954058942 | G60: 1.87 | H60: 4.954058942 | O60: 58 | P60: 6.54 | Q60: 5.922702086 | R60: 6.7 | S60: 2.961351043
D61: 59 | E61: 1.76 | F61: 4.936742347 | G61: 1.76 | H61: 4.936742347 | O61: 59 | P61: 6.42 | Q61: 5.901999661 | R61: 6.6 | S61: 2.950999831
D62: 60 | E62: 1.65 | F62: 4.917316341 | G62: 1.65 | H62: 4.917316341 | O62: 60 | P62: 6.3 | Q62: 5.878775383 | R62: 6.5 | S62: 2.939387691
D63: 61 | E63: 1.54 | F63: 4.895755815 | G63: 1.54 | H63: 4.895755815 | O63: 61 | P63: 6.18 | Q63: 5.852999231 | R63: 6.4 | S63: 2.926499616
D64: 62 | E64: 1.43 | F64: 4.87203243 | G64: 1.43 | H64: 4.87203243 | O64: 62 | P64: 6.06 | Q64: 5.824637328 | R64: 6.3 | S64: 2.912318664
D65: 63 | E65: 1.32 | F65: 4.846114423 | G65: 1.32 | H65: 4.846114423 | O65: 63 | P65: 5.94 | Q65: 5.793651698 | R65: 6.2 | S65: 2.896825849
D66: 64 | E66: 1.21 | F66: =IF(a>cc, b*(1-(E66-x0)^2/a^2)^0.5,x0) -> 4.817966376 | G66: 1.21 | H66: 4.817966376 | O66: 64 | P66: 5.82 | Q66: =bb*(1-(P66-x00)^2/aa^2)^0.5 -> 5.76 | R66: 6.1 | S66: =3*(1-(R66-x00)^2/25)^0.5 -> 2.88
D67: 65 | E67: =IF(a>cc,E66-dx,0) -> 1.1 | F67: 4.787548955 | G67: =E67 -> 1.1 | H67: =F67 -> 4.787548955 | O67: 65 | P67: =P66-dxx -> 5.7 | Q67: 5.723635209 | R67: 6 | S67: 2.861817604
D68: 66 | E68: 0.99 | F68: 4.754818609 | G68: 0.99 | H68: 4.754818609 | O68: 66 | P68: 5.58 | Q68: 5.684505256 | R68: =R67-0.1 -> 5.9 | S68: 2.842252628
D69: 67 | E69: 0.88 | F69: 4.719727217 | G69: 0.88 | H69: 4.719727217 | O69: 67 | P69: 5.46 | Q69: 5.642552614 | R69: 5.8 | S69: 2.821276307
D70: 68 | E70: 0.77 | F70: 4.682221695 | G70: 0.77 | H70: 4.682221695 | O70: 68 | P70: 5.34 | Q70: 5.597713819 | R70: 5.7 | S70: 2.79885691
D71: 69 | E71: 0.66 | F71: 4.642243531 | G71: 0.66 | H71: 4.642243531 | O71: 69 | P71: 5.22 | Q71: 5.549918918 | R71: 5.6 | S71: 2.774959459
D72: 70 | E72: 0.55 | F72: 4.599728253 | G72: 0.55 | H72: 4.599728253 | O72: 70 | P72: 5.1 | Q72: 5.499090834 | R72: 5.5 | S72: 2.749545417
D73: 71 | E73: 0.44 | F73: 4.554604813 | G73: 0.44 | H73: 4.554604813 | O73: 71 | P73: 4.98 | Q73: 5.445144626 | R73: 5.4 | S73: 2.722572313
D74: 72 | E74: 0.33 | F74: 4.50679487 | G74: 0.33 | H74: 4.50679487 | O74: 72 | P74: 4.86 | Q74: 5.387986637 | R74: 5.3 | S74: 2.693993318
D75: 73 | E75: 0.22 | F75: 4.456211956 | G75: 0.22 | H75: 4.456211956 | O75: 73 | P75: 4.74 | Q75: 5.327513491 | R75: 5.2 | S75: 2.663756746
D76: 74 | E76: 0.11 | F76: 4.402760498 | G76: 0.11 | H76: 4.402760498 | O76: 74 | P76: 4.62 | Q76: 5.263610928 | R76: 5.1 | S76: 2.631805464
D77: 75 | E77: -8.909539773e-15 | F77: 4.346334663 | G77: -8.909539773e-15 | H77: 4.346334663 | O77: 75 | P77: 4.5 | Q77: 5.196152423 | R77: 5 | S77: 2.598076211
D78: 76 | E78: -0.11 | F78: 4.286817001 | G78: -0.11 | H78: 4.286817001 | O78: 76 | P78: 4.38 | Q78: 5.124997561 | R78: 4.9 | S78: 2.56249878
D79: 77 | E79: -0.22 | F79: 4.224076822 | G79: -0.22 | H79: 4.224076822 | O79: 77 | P79: 4.26 | Q79: 5.049990099 | R79: 4.8 | S79: 2.52499505
D80: 78 | E80: -0.33 | F80: 4.157968254 | G80: -0.33 | H80: 4.157968254 | O80: 78 | P80: 4.14 | Q80: 4.970955643 | R80: 4.7 | S80: 2.485477821
D81: 79 | E81: -0.44 | F81: 4.088327898 | G81: -0.44 | H81: 4.088327898 | O81: 79 | P81: 4.02 | Q81: 4.887698845 | R81: 4.6 | S81: 2.443849423
D82: 80 | E82: -0.55 | F82: 4.01497198 | G82: -0.55 | H82: 4.01497198 | O82: 80 | P82: 3.9 | Q82: 4.8 | R82: 4.5 | S82: 2.4
D83: 81 | E83: -0.66 | F83: 3.937692852 | G83: -0.66 | H83: 3.937692852 | O83: 81 | P83: 3.78 | Q83: 4.707610859 | R83: 4.4 | S83: 2.35380543
D84: 82 | E84: -0.77 | F84: 3.85625466 | G84: -0.77 | H84: 3.85625466 | O84: 82 | P84: 3.66 | Q84: 4.610249451 | R84: 4.3 | S84: 2.305124725
D85: 83 | E85: -0.88 | F85: 3.770387911 | G85: -0.88 | H85: 3.770387911 | O85: 83 | P85: 3.54 | Q85: 4.507593593 | R85: 4.2 | S85: 2.253796797
D86: 84 | E86: -0.99 | F86: 3.679782602 | G86: -0.99 | H86: 3.679782602 | O86: 84 | P86: 3.42 | Q86: 4.399272667 | R86: 4.1 | S86: 2.199636334
D87: 85 | E87: -1.1 | F87: 3.58407938 | G87: -1.1 | H87: 3.58407938 | O87: 85 | P87: 3.3 | Q87: 4.284857057 | R87: 4 | S87: 2.142428529
D88: 86 | E88: -1.21 | F88: 3.482858022 | G88: -1.21 | H88: 3.482858022 | O88: 86 | P88: 3.18 | Q88: 4.163844377 | R88: 3.9 | S88: 2.081922189
D89: 87 | E89: -1.32 | F89: 3.375622165 | G89: -1.32 | H89: 3.375622165 | O89: 87 | P89: 3.06 | Q89: 4.035641213 | R89: 3.8 | S89: 2.017820606
D90: 88 | E90: -1.43 | F90: 3.261778656 | G90: -1.43 | H90: 3.261778656 | O90: 88 | P90: 2.94 | Q90: 3.899538434 | R90: 3.7 | S90: 1.949769217
D91: 89 | E91: -1.54 | F91: 3.140609017 | G91: -1.54 | H91: 3.140609017 | O91: 89 | P91: 2.82 | Q91: 3.754677083 | R91: 3.6 | S91: 1.877338542
D92: 90 | E92: -1.65 | F92: 3.011228985 | G92: -1.65 | H92: 3.011228985 | O92: 90 | P92: 2.7 | Q92: 3.6 | R92: 3.5 | S92: 1.8
D93: 91 | E93: -1.76 | F93: 2.872529373 | G93: -1.76 | H93: 2.872529373 | O93: 91 | P93: 2.58 | Q93: 3.434181125 | R93: 3.4 | S93: 1.717090563
D94: 92 | E94: -1.87 | F94: 2.723086484 | G94: -1.87 | H94: 2.723086484 | O94: 92 | P94: 2.46 | Q94: 3.255518392 | R94: 3.3 | S94: 1.627759196
D95: 93 | E95: -1.98 | F95: 2.561020304 | G95: -1.98 | H95: 2.561020304 | O95: 93 | P95: 2.34 | Q95: 3.061764197 | R95: 3.2 | S95: 1.530882099
D96: 94 | E96: -2.09 | F96: 2.383757538 | G96: -2.09 | H96: 2.383757538 | O96: 94 | P96: 2.22 | Q96: 2.849842101 | R96: 3.1 | S96: 1.42492105
D97: 95 | E97: -2.2 | F97: 2.18760714 | G97: -2.2 | H97: 2.18760714 | O97: 95 | P97: 2.1 | Q97: 2.615339366 | R97: 3 | S97: 1.307669683
D98: 96 | E98: -2.31 | F98: =IF(a>cc, b*(1-(E98-x0)^2/a^2)^0.5,x0) -> 1.966926537 | G98: -2.31 | H98: 1.966926537 | O98: 96 | P98: 1.98 | Q98: =bb*(1-(P98-x00)^2/aa^2)^0.5 -> 2.351510153 | R98: 2.9 | S98: =3*(1-(R98-x00)^2/25)^0.5 -> 1.175755077
D99: 97 | E99: -2.42 | F99: =IF(a>cc, b*(1-(E99-x0)^2/a^2)^0.5,x0) -> 1.712257282 | G99: -2.42 | H99: 1.712257282 | O99: 97 | P99: 1.86 | Q99: =bb*(1-(P99-x00)^2/aa^2)^0.5 -> 2.047046653 | R99: 2.8 | S99: =3*(1-(R99-x00)^2/25)^0.5 -> 1.023523327
D100: 98 | E100: -2.53 | F100: =IF(a>cc, b*(1-(E100-x0)^2/a^2)^0.5,x0) -> 1.405240193 | G100: -2.53 | H100: 1.405240193 | O100: 98 | P100: 1.74 | Q100: =bb*(1-(P100-x00)^2/aa^2)^0.5 -> 1.68 | R100: 2.7 | S100: =3*(1-(R100-x00)^2/25)^0.5 -> 0.84
D101: 99 | E101: -2.64 | F101: =IF(a>cc, b*(1-(E101-x0)^2/a^2)^0.5,x0) -> 0.9987116701 | G101: -2.64 | H101: 0.9987116701 | O101: 99 | P101: 1.62 | Q101: =bb*(1-(P101-x00)^2/aa^2)^0.5 -> 1.193984925 | R101: 2.6 | S101: =3*(1-(R101-x00)^2/25)^0.5 -> 0.5969924623
D102: 100 | E102: -2.75 | F102: =IF(a>cc, b*(1-(E102-x0)^2/a^2)^0.5,x0) ->  | G102: -2.75 | O102: 100 | P102: 1.5 | Q102: =bb*(1-(P102-x00)^2/aa^2)^0.5 -> 5.964188604e-07 | R102: 2.5 | S102: =3*(1-(R102-x00)^2/25)^0.5 -> 3.192467285e-07
D103: 101 | E103: =IF(a>cc,E102+dx,0) -> -2.64 | F103: =IF(a>cc, -b*(1-(E103-x0)^2/a^2)^0.5,x0) -> -0.9987116701 | G103: =E201 -> 8.14 | O103: 101 | P103: =P102+dxx -> 1.62 | Q103: =-bb*(1-(P103-x00)^2/aa^2)^0.5 -> -1.193984925 | R103: =R102+0.1 -> 2.6 | S103: =-3*(1-(R103-x00)^2/25)^0.5 -> -0.5969924623
D104: 102 | E104: -2.53 | F104: -1.405240193 | O104: 102 | P104: 1.74 | Q104: -1.68 | R104: =R103+0.1 -> 2.7 | S104: -0.84
D105: 103 | E105: -2.42 | F105: -1.712257282 | O105: 103 | P105: 1.86 | Q105: -2.047046653 | R105: 2.8 | S105: -1.023523327
D106: 104 | E106: -2.31 | F106: -1.966926537 | O106: 104 | P106: 1.98 | Q106: -2.351510153 | R106: 2.9 | S106: -1.175755077
D107: 105 | E107: -2.2 | F107: -2.18760714 | O107: 105 | P107: 2.1 | Q107: -2.615339366 | R107: 3 | S107: -1.307669683
D108: 106 | E108: -2.09 | F108: -2.383757538 | O108: 106 | P108: 2.22 | Q108: -2.849842101 | R108: 3.1 | S108: -1.42492105
D109: 107 | E109: -1.98 | F109: -2.561020304 | O109: 107 | P109: 2.34 | Q109: -3.061764197 | R109: 3.2 | S109: -1.530882099
D110: 108 | E110: -1.87 | F110: -2.723086484 | O110: 108 | P110: 2.46 | Q110: -3.255518392 | R110: 3.3 | S110: -1.627759196
D111: 109 | E111: -1.76 | F111: -2.872529373 | O111: 109 | P111: 2.58 | Q111: -3.434181125 | R111: 3.4 | S111: -1.717090563
D112: 110 | E112: -1.65 | F112: -3.011228985 | O112: 110 | P112: 2.7 | Q112: -3.6 | R112: 3.5 | S112: -1.8
D113: 111 | E113: -1.54 | F113: -3.140609017 | O113: 111 | P113: 2.82 | Q113: -3.754677083 | R113: 3.6 | S113: -1.877338542
D114: 112 | E114: -1.43 | F114: -3.261778656 | O114: 112 | P114: 2.94 | Q114: -3.899538434 | R114: 3.7 | S114: -1.949769217
D115: 113 | E115: -1.32 | F115: -3.375622165 | O115: 113 | P115: 3.06 | Q115: -4.035641213 | R115: 3.8 | S115: -2.017820606
D116: 114 | E116: -1.21 | F116: -3.482858022 | O116: 114 | P116: 3.18 | Q116: -4.163844377 | R116: 3.9 | S116: -2.081922189
D117: 115 | E117: -1.1 | F117: -3.58407938 | O117: 115 | P117: 3.3 | Q117: -4.284857057 | R117: 4 | S117: -2.142428529
D118: 116 | E118: -0.99 | F118: -3.679782602 | O118: 116 | P118: 3.42 | Q118: -4.399272667 | R118: 4.1 | S118: -2.199636334
D119: 117 | E119: -0.88 | F119: -3.770387911 | O119: 117 | P119: 3.54 | Q119: -4.507593593 | R119: 4.2 | S119: -2.253796797
D120: 118 | E120: -0.77 | F120: -3.85625466 | O120: 118 | P120: 3.66 | Q120: -4.610249451 | R120: 4.3 | S120: -2.305124725
D121: 119 | E121: -0.66 | F121: -3.937692852 | O121: 119 | P121: 3.78 | Q121: -4.707610859 | R121: 4.4 | S121: -2.35380543
D122: 120 | E122: -0.55 | F122: -4.01497198 | O122: 120 | P122: 3.9 | Q122: -4.8 | R122: 4.5 | S122: -2.4
D123: 121 | E123: -0.44 | F123: -4.088327898 | O123: 121 | P123: 4.02 | Q123: -4.887698845 | R123: 4.6 | S123: -2.443849423
D124: 122 | E124: -0.33 | F124: -4.157968254 | O124: 122 | P124: 4.14 | Q124: -4.970955643 | R124: 4.7 | S124: -2.485477821
D125: 123 | E125: -0.22 | F125: -4.224076822 | O125: 123 | P125: 4.26 | Q125: -5.049990099 | R125: 4.8 | S125: -2.52499505
D126: 124 | E126: -0.11 | F126: -4.286817001 | O126: 124 | P126: 4.38 | Q126: -5.124997561 | R126: 4.9 | S126: -2.56249878
D127: 125 | E127: -8.854028621e-15 | F127: -4.346334663 | O127: 125 | P127: 4.5 | Q127: -5.196152423 | R127: 5 | S127: -2.598076211
D128: 126 | E128: 0.11 | F128: -4.402760498 | O128: 126 | P128: 4.62 | Q128: -5.263610928 | R128: 5.1 | S128: -2.631805464
D129: 127 | E129: 0.22 | F129: -4.456211956 | O129: 127 | P129: 4.74 | Q129: -5.327513491 | R129: 5.2 | S129: -2.663756746
D130: 128 | E130: 0.33 | F130: -4.50679487 | O130: 128 | P130: 4.86 | Q130: -5.387986637 | R130: 5.3 | S130: -2.693993318
D131: 129 | E131: 0.44 | F131: -4.554604813 | O131: 129 | P131: 4.98 | Q131: -5.445144626 | R131: 5.4 | S131: -2.722572313
D132: 130 | E132: 0.55 | F132: -4.599728253 | O132: 130 | P132: 5.1 | Q132: -5.499090834 | R132: 5.5 | S132: -2.749545417
D133: 131 | E133: 0.66 | F133: -4.642243531 | O133: 131 | P133: 5.22 | Q133: -5.549918918 | R133: 5.6 | S133: -2.774959459
D134: 132 | E134: 0.77 | F134: -4.682221695 | O134: 132 | P134: 5.34 | Q134: -5.597713819 | R134: 5.7 | S134: -2.79885691
D135: 133 | E135: =IF(a>cc,E134+dx,0) -> 0.88 | F135: =IF(a>cc, -b*(1-(E135-x0)^2/a^2)^0.5,x0) -> -4.719727217 | O135: 133 | P135: =P134+dxx -> 5.46 | Q135: =-bb*(1-(P135-x00)^2/aa^2)^0.5 -> -5.642552614 | R135: 5.8 | S135: =-3*(1-(R135-x00)^2/25)^0.5 -> -2.821276307
D136: 134 | E136: 0.99 | F136: -4.754818609 | O136: 134 | P136: 5.58 | Q136: -5.684505256 | R136: 5.9 | S136: -2.842252628
D137: 135 | E137: 1.1 | F137: -4.787548955 | O137: 135 | P137: 5.7 | Q137: -5.723635209 | R137: 6 | S137: -2.861817604
D138: 136 | E138: 1.21 | F138: -4.817966376 | O138: 136 | P138: 5.82 | Q138: -5.76 | R138: 6.1 | S138: -2.88
D139: 137 | E139: 1.32 | F139: -4.846114423 | O139: 137 | P139: 5.94 | Q139: -5.793651698 | R139: 6.2 | S139: -2.896825849
D140: 138 | E140: 1.43 | F140: -4.87203243 | O140: 138 | P140: 6.06 | Q140: -5.824637328 | R140: 6.3 | S140: -2.912318664
D141: 139 | E141: 1.54 | F141: -4.895755815 | O141: 139 | P141: 6.18 | Q141: -5.852999231 | R141: 6.4 | S141: -2.926499616
D142: 140 | E142: 1.65 | F142: -4.917316341 | O142: 140 | P142: 6.3 | Q142: -5.878775383 | R142: 6.5 | S142: -2.939387691
D143: 141 | E143: 1.76 | F143: -4.936742347 | O143: 141 | P143: 6.42 | Q143: -5.901999661 | R143: 6.6 | S143: -2.950999831
D144: 142 | E144: 1.87 | F144: -4.954058942 | O144: 142 | P144: 6.54 | Q144: -5.922702086 | R144: 6.7 | S144: -2.961351043
D145: 143 | E145: 1.98 | F145: -4.969288178 | O145: 143 | P145: 6.66 | Q145: -5.940909021 | R145: 6.8 | S145: -2.970454511
D146: 144 | E146: 2.09 | F146: -4.982449197 | O146: 144 | P146: 6.78 | Q146: -5.95664335 | R146: 6.9 | S146: -2.978321675
D147: 145 | E147: 2.2 | F147: -4.993558351 | O147: 145 | P147: 6.9 | Q147: -5.969924623 | R147: 7 | S147: -2.984962311
D148: 146 | E148: 2.31 | F148: -5.002629309 | O148: 146 | P148: 7.02 | Q148: -5.980769181 | R148: 7.1 | S148: -2.990384591
D149: 147 | E149: 2.42 | F149: -5.009673143 | O149: 147 | P149: 7.14 | Q149: -5.989190262 | R149: 7.2 | S149: -2.994595131
D150: 148 | E150: 2.53 | F150: -5.014698396 | O150: 148 | P150: 7.26 | Q150: -5.995198078 | R150: 7.3 | S150: -2.997599039
D151: 149 | E151: 2.64 | F151: -5.017711132 | O151: 149 | P151: 7.38 | Q151: -5.99879988 | R151: 7.4 | S151: -2.99939994
D152: 150 | E152: 2.75 | F152: -5.018714975 | O152: 150 | P152: 7.5 | Q152: -6 | R152: 7.5 | S152: -3
D153: 151 | E153: 2.86 | F153: -5.017711132 | O153: 151 | P153: 7.62 | Q153: -5.99879988 | R153: 7.6 | S153: -2.99939994
D154: 152 | E154: 2.97 | F154: -5.014698396 | O154: 152 | P154: 7.74 | Q154: -5.995198078 | R154: 7.7 | S154: -2.997599039
D155: 153 | E155: 3.08 | F155: -5.009673143 | O155: 153 | P155: 7.86 | Q155: -5.989190262 | R155: 7.8 | S155: -2.994595131
D156: 154 | E156: 3.19 | F156: -5.002629309 | O156: 154 | P156: 7.98 | Q156: -5.980769181 | R156: 7.9 | S156: -2.990384591
D157: 155 | E157: 3.3 | F157: -4.993558351 | O157: 155 | P157: 8.1 | Q157: -5.969924623 | R157: 8 | S157: -2.984962311
D158: 156 | E158: 3.41 | F158: -4.982449197 | O158: 156 | P158: 8.22 | Q158: -5.95664335 | R158: 8.1 | S158: -2.978321675
D159: 157 | E159: 3.52 | F159: -4.969288178 | O159: 157 | P159: 8.34 | Q159: -5.940909021 | R159: 8.2 | S159: -2.970454511
D160: 158 | E160: 3.63 | F160: -4.954058942 | O160: 158 | P160: 8.46 | Q160: -5.922702086 | R160: 8.3 | S160: -2.961351043
D161: 159 | E161: 3.74 | F161: -4.936742347 | O161: 159 | P161: 8.58 | Q161: -5.901999661 | R161: 8.4 | S161: -2.950999831
D162: 160 | E162: 3.85 | F162: -4.917316341 | O162: 160 | P162: 8.7 | Q162: -5.878775383 | R162: 8.5 | S162: -2.939387691
D163: 161 | E163: 3.96 | F163: -4.895755815 | O163: 161 | P163: 8.82 | Q163: -5.852999231 | R163: 8.6 | S163: -2.926499616
D164: 162 | E164: 4.07 | F164: -4.87203243 | O164: 162 | P164: 8.94 | Q164: -5.824637328 | R164: 8.7 | S164: -2.912318664
D165: 163 | E165: 4.18 | F165: -4.846114423 | O165: 163 | P165: 9.06 | Q165: -5.793651698 | R165: 8.8 | S165: -2.896825849
D166: 164 | E166: 4.29 | F166: -4.817966376 | O166: 164 | P166: 9.18 | Q166: -5.76 | R166: 8.9 | S166: -2.88
D167: 165 | E167: =IF(a>cc,E166+dx,0) -> 4.4 | F167: =IF(a>cc, -b*(1-(E167-x0)^2/a^2)^0.5,x0) -> -4.787548955 | O167: 165 | P167: =P166+dxx -> 9.3 | Q167: =-bb*(1-(P167-x00)^2/aa^2)^0.5 -> -5.723635209 | R167: 9 | S167: =-3*(1-(R167-x00)^2/25)^0.5 -> -2.861817604
D168: 166 | E168: 4.51 | F168: -4.754818609 | O168: 166 | P168: 9.42 | Q168: -5.684505256 | R168: =R167+0.1 -> 9.1 | S168: -2.842252628
D169: 167 | E169: 4.62 | F169: -4.719727217 | O169: 167 | P169: 9.54 | Q169: -5.642552614 | R169: 9.2 | S169: -2.821276307
D170: 168 | E170: 4.73 | F170: -4.682221695 | O170: 168 | P170: 9.66 | Q170: -5.597713819 | R170: 9.3 | S170: -2.79885691
D171: 169 | E171: 4.84 | F171: -4.642243531 | O171: 169 | P171: 9.78 | Q171: -5.549918918 | R171: 9.4 | S171: -2.774959459
D172: 170 | E172: 4.95 | F172: -4.599728253 | O172: 170 | P172: 9.9 | Q172: -5.499090834 | R172: 9.5 | S172: -2.749545417
D173: 171 | E173: 5.06 | F173: -4.554604813 | O173: 171 | P173: 10.02 | Q173: -5.445144626 | R173: 9.6 | S173: -2.722572313
D174: 172 | E174: 5.17 | F174: -4.50679487 | O174: 172 | P174: 10.14 | Q174: -5.387986637 | R174: 9.7 | S174: -2.693993318
D175: 173 | E175: 5.28 | F175: -4.456211956 | O175: 173 | P175: 10.26 | Q175: -5.327513491 | R175: 9.8 | S175: -2.663756746
D176: 174 | E176: 5.39 | F176: -4.402760498 | O176: 174 | P176: 10.38 | Q176: -5.263610928 | R176: 9.9 | S176: -2.631805464
D177: 175 | E177: 5.5 | F177: -4.346334663 | O177: 175 | P177: 10.5 | Q177: -5.196152423 | R177: 10 | S177: -2.598076211
D178: 176 | E178: 5.61 | F178: -4.286817001 | O178: 176 | P178: 10.62 | Q178: -5.124997561 | R178: 10.1 | S178: -2.56249878
D179: 177 | E179: 5.72 | F179: -4.224076822 | O179: 177 | P179: 10.74 | Q179: -5.049990099 | R179: 10.2 | S179: -2.52499505
D180: 178 | E180: 5.83 | F180: -4.157968254 | O180: 178 | P180: 10.86 | Q180: -4.970955643 | R180: 10.3 | S180: -2.485477821
D181: 179 | E181: 5.94 | F181: -4.088327898 | O181: 179 | P181: 10.98 | Q181: -4.887698845 | R181: 10.4 | S181: -2.443849423
D182: 180 | E182: 6.05 | F182: -4.01497198 | O182: 180 | P182: 11.1 | Q182: -4.8 | R182: 10.5 | S182: -2.4
D183: 181 | E183: 6.16 | F183: -3.937692852 | O183: 181 | P183: 11.22 | Q183: -4.707610859 | R183: 10.6 | S183: -2.35380543
D184: 182 | E184: 6.27 | F184: -3.85625466 | O184: 182 | P184: 11.34 | Q184: -4.610249451 | R184: 10.7 | S184: -2.305124725
D185: 183 | E185: 6.38 | F185: -3.770387911 | O185: 183 | P185: 11.46 | Q185: -4.507593593 | R185: 10.8 | S185: -2.253796797
D186: 184 | E186: 6.49 | F186: -3.679782602 | O186: 184 | P186: 11.58 | Q186: -4.399272667 | R186: 10.9 | S186: -2.199636334
D187: 185 | E187: 6.6 | F187: -3.58407938 | O187: 185 | P187: 11.7 | Q187: -4.284857057 | R187: 11 | S187: -2.142428529
D188: 186 | E188: 6.71 | F188: -3.482858022 | O188: 186 | P188: 11.82 | Q188: -4.163844377 | R188: 11.1 | S188: -2.081922189
D189: 187 | E189: 6.82 | F189: -3.375622165 | O189: 187 | P189: 11.94 | Q189: -4.035641213 | R189: 11.2 | S189: -2.017820606
D190: 188 | E190: 6.93 | F190: -3.261778656 | O190: 188 | P190: 12.06 | Q190: -3.899538434 | R190: 11.3 | S190: -1.949769217
D191: 189 | E191: 7.04 | F191: -3.140609017 | O191: 189 | P191: 12.18 | Q191: -3.754677083 | R191: 11.4 | S191: -1.877338542
D192: 190 | E192: 7.15 | F192: -3.011228985 | O192: 190 | P192: 12.3 | Q192: -3.6 | R192: 11.5 | S192: -1.8
D193: 191 | E193: 7.26 | F193: -2.872529373 | O193: 191 | P193: 12.42 | Q193: -3.434181125 | R193: 11.6 | S193: -1.717090563
D194: 192 | E194: 7.37 | F194: -2.723086484 | O194: 192 | P194: 12.54 | Q194: -3.255518392 | R194: 11.7 | S194: -1.627759196
D195: 193 | E195: 7.48 | F195: -2.561020304 | O195: 193 | P195: 12.66 | Q195: -3.061764197 | R195: 11.8 | S195: -1.530882099
D196: 194 | E196: 7.59 | F196: -2.383757538 | O196: 194 | P196: 12.78 | Q196: -2.849842101 | R196: 11.9 | S196: -1.42492105
D197: 195 | E197: 7.7 | F197: -2.18760714 | O197: 195 | P197: 12.9 | Q197: -2.615339366 | R197: 12 | S197: -1.307669683
D198: 196 | E198: 7.81 | F198: -1.966926537 | O198: 196 | P198: 13.02 | Q198: -2.351510153 | R198: 12.1 | S198: -1.175755077
D199: 197 | E199: 7.92 | F199: =IF(a>cc, -b*(1-(E199-x0)^2/a^2)^0.5,x0) -> -1.712257282 | O199: 197 | P199: 13.14 | Q199: =-bb*(1-(P199-x00)^2/aa^2)^0.5 -> -2.047046653 | R199: 12.2 | S199: =-3*(1-(R199-x00)^2/25)^0.5 -> -1.023523327
D200: 198 | E200: 8.03 | F200: =IF(a>cc, -b*(1-(E200-x0)^2/a^2)^0.5,x0) -> -1.405240193 | O200: 198 | P200: 13.26 | Q200: =-bb*(1-(P200-x00)^2/aa^2)^0.5 -> -1.68 | R200: 12.3 | S200: =-3*(1-(R200-x00)^2/25)^0.5 -> -0.84
... 2 more rows

Sheet Sheet4
